{"text_format":"3","workbook":"xlsx","n_sheets":2,"sheets":["Kezdés","Szolgáltatásszámla"],"not_rendered":{"images":1,"defined_names":1},"read":"whole","date_system":"1900"}

{"sheet":"Kezdés","index":0,"n_rows":8,"n_cols":2,"rows_kept":8}
[null,"A SABLON ISMERTETÉSE"]
[null,"Ezzel a sablonnal létrehozhat egy szolgáltatásszámlát."]
[null,"Adja meg a számlaszámot, a dátumot, a cég nevét, címét és jelmondatát, valamint a szállítási cím adatait."]
[null,"A táblázatokban adhatja meg az adatokat."]
[null,"A sablon automatikusan kiszámítja a végösszeget."]
[null,"Megjegyzés: "]
[null,"A SZOLGÁLTATÁSSZÁMLA munkalap A oszlopában további útmutatást olvashat. Ez a szöveg szándékosan van elrejtve. Ha törölni szeretné a szöveget, jelölje ki az A oszlopot, majd nyomja le a DELETE billentyűt. Ha láthatóvá szeretné tenni a szöveget, jelölje ki az A oszlopot, majd módosítsa a betűszínt."]
[null,"Ha többet szeretne megtudni a táblázatokról, nyomja le a SHIFT+F10 billentyűkombinációt egy táblázaton belül, és válassza a TÁBLÁZAT parancsot, majd a HELYETTESÍTŐ SZÖVEG elemet."]

{"sheet":"Szolgáltatásszámla","index":1,"n_rows":44,"n_cols":5,"rows_kept":44,"merged":[[0,1,0,2],[0,3,0,4],[2,1,2,3],[3,1,3,3],[4,1,4,2],[5,1,5,2],[6,1,6,2],[7,1,7,2],[41,1,41,2],[41,3,41,4],[43,1,43,4]]}
[null,"Ebben a cellában az embléma helyőrzője található.",null,"SZÁMLA"]
[]
[null,"A cég neve"]
[null,"A cég jelmondata"]
[null,"Irányítószám, település",null,"SZÁMLA SZÁMA:","Szám"]
[null,"Utca, házszám",null,"DÁTUM ",{"$f":"TODAY()","v":"2022-04-25"}]
[null,"Telefonszám/faxszám",null,"VEVŐAZONOSÍTÓ ","Azonosító"]
[null,"E-mail-cím"]
[null,"CÍMZETT","Név"]
[null,null,"Cégnév"]
[null,null,"Irányítószám, település"]
[null,null,"Utca, házszám"]
[null,null,"Telefonszám"]
[null,"ÜZLETKÖTŐ","MUNKA","FIZETÉSI FELTÉTELEK","HATÁRIDŐ"]
[{"$nulls":3},"Kézhezvételkor fizetendő"]
[]
[null,"MENNYISÉG","LEÍRÁS","EGYSÉGÁR","SOR ÖSSZEGE"]
[{"$nulls":4},{"$f":"IF(SUM(B18)>0,SUM(B18*Szolgáltatásszámla!$D18),\"\")","v":""}]
[{"$nulls":4},{"$f":"IF(SUM(B19)>0,SUM(B19*Szolgáltatásszámla!$D19),\"\")","v":""}]
[{"$nulls":4},{"$f":"IF(SUM(B20)>0,SUM(B20*Szolgáltatásszámla!$D20),\"\")","v":""}]
[{"$nulls":4},{"$f":"IF(SUM(B21)>0,SUM(B21*Szolgáltatásszámla!$D21),\"\")","v":""}]
[{"$nulls":4},{"$f":"IF(SUM(B22)>0,SUM(B22*Szolgáltatásszámla!$D22),\"\")","v":""}]
[{"$nulls":4},{"$f":"IF(SUM(B23)>0,SUM(B23*Szolgáltatásszámla!$D23),\"\")","v":""}]
[{"$nulls":4},{"$f":"IF(SUM(B24)>0,SUM(B24*Szolgáltatásszámla!$D24),\"\")","v":""}]
[{"$nulls":4},{"$f":"IF(SUM(B25)>0,SUM(B25*Szolgáltatásszámla!$D25),\"\")","v":""}]
[{"$nulls":4},{"$f":"IF(SUM(B26)>0,SUM(B26*Szolgáltatásszámla!$D26),\"\")","v":""}]
[{"$nulls":4},{"$f":"IF(SUM(B27)>0,SUM(B27*Szolgáltatásszámla!$D27),\"\")","v":""}]
[{"$nulls":4},{"$f":"IF(SUM(B28)>0,SUM(B28*Szolgáltatásszámla!$D28),\"\")","v":""}]
[{"$nulls":4},{"$f":"IF(SUM(B29)>0,SUM(B29*Szolgáltatásszámla!$D29),\"\")","v":""}]
[{"$nulls":4},{"$f":"IF(SUM(B30)>0,SUM(B30*Szolgáltatásszámla!$D30),\"\")","v":""}]
[{"$nulls":4},{"$f":"IF(SUM(B31)>0,SUM(B31*Szolgáltatásszámla!$D31),\"\")","v":""}]
[{"$nulls":4},{"$f":"IF(SUM(B32)>0,SUM(B32*Szolgáltatásszámla!$D32),\"\")","v":""}]
[{"$nulls":4},{"$f":"IF(SUM(B33)>0,SUM(B33*Szolgáltatásszámla!$D33),\"\")","v":""}]
[{"$nulls":4},{"$f":"IF(SUM(B34)>0,SUM(B34*Szolgáltatásszámla!$D34),\"\")","v":""}]
[{"$nulls":4},{"$f":"IF(SUM(B35)>0,SUM(B35*Szolgáltatásszámla!$D35),\"\")","v":""}]
[{"$nulls":4},{"$f":"IF(SUM(B36)>0,SUM(B36*Szolgáltatásszámla!$D36),\"\")","v":""}]
[{"$nulls":4},{"$f":"IF(SUM(B37)>0,SUM(B37*Szolgáltatásszámla!$D37),\"\")","v":""}]
[{"$nulls":3},"RÉSZÖSSZEG",{"$f":"IF(SUM(E18:E37)>0,SUM(E18:E37),\"\")","v":""}]
[{"$nulls":3},"ÁFA"]
[{"$nulls":3},"ÖSSZEG",{"$f":"IF(SUM(E38)>0,SUM((E38*E39)+E38),\"\")","v":""}]
[]
[null,"Minden csekk kedvezményezettje legyen a",null,{"$f":"B3","v":"A cég neve"}]
[]
[null,"KÖSZÖNJÜK A MEGRENDELÉST!"]